[Event "*** Titled Tuesday Blitz"]
[Site "Chess.com"]
[Date "2021.03.30"]
[Round "9"]
[White "Sam_ChessMood"]
[Black "alexrustemov"]
[Result "1-0"]
[WhiteElo "2873"]
[BlackElo "2728"]
[TimeControl "180+1"]
[EndTime "11:50:20 PDT"]
[Termination "Sam_ChessMood won on time"]

1. Nf3 {[%clk 0:03:00.9]} 1... d5 {[%clk 0:02:59.5]} 2. d4 {[%clk 0:03:00.8]}
2... Nf6 {[%clk 0:02:59.8]} 3. c4 {[%clk 0:03:00.6]} 3... e6 {[%clk 0:02:59]} 4.
Nc3 {[%clk 0:03:00.3]} 4... Be7 {[%clk 0:02:59.2]} 5. Bf4 {[%clk 0:02:59.7]}
5... O-O {[%clk 0:02:58.7]} 6. e3 {[%clk 0:03:00.3]} 6... c5 {[%clk 0:02:58.7]}
7. dxc5 {[%clk 0:02:59.7]} 7... Bxc5 {[%clk 0:02:59.4]} 8. a3 {[%clk 0:02:57.2]}
8... Nc6 {[%clk 0:02:59]} 9. Qc2 {[%clk 0:02:57.3]} 9... Qa5 {[%clk 0:02:56.6]}
10. Rd1 {[%clk 0:02:53.4]} 10... Be7 {[%clk 0:02:55.9]} 11. Be2 {[%clk
0:02:39.2]} 11... dxc4 {[%clk 0:02:49.1]} 12. Bxc4 {[%clk 0:02:15]} 12... a6
{[%clk 0:02:49.1]} 13. O-O {[%clk 0:02:13.3]} 13... b5 {[%clk 0:02:49]} 14. Ba2
{[%clk 0:02:10.7]} 14... Bb7 {[%clk 0:02:40]} 15. Ne4 {[%clk 0:01:55.6]} 15...
Rfc8 {[%clk 0:01:51.3]} 16. Bb1 {[%clk 0:01:34]} 16... g6 {[%clk 0:01:41.2]} 17.
Qe2 {[%clk 0:01:31.6]} 17... Nd5 {[%clk 0:01:15.8]} 18. Bd6 {[%clk 0:01:20.1]}
18... b4 {[%clk 0:01:14.9]} 19. Bxe7 {[%clk 0:01:14.1]} 19... Ncxe7 {[%clk
0:01:15.4]} 20. Nd6 {[%clk 0:01:13.6]} 20... Rc7 {[%clk 0:01:14]} 21. e4 {[%clk
0:00:57.6]} 21... Nf6 {[%clk 0:01:01.8]} 22. Qd2 {[%clk 0:00:46.1]} 22... Qb6
{[%clk 0:00:44.3]} 23. Qf4 {[%clk 0:00:39.8]} 23... Kg7 {[%clk 0:00:20.4]} 24.
e5 {[%clk 0:00:40]} 24... Ned5 {[%clk 0:00:14.4]} 25. exf6+ {[%clk 0:00:40.1]}
25... Nxf6 {[%clk 0:00:15.2]} 26. Qd4 {[%clk 0:00:36.1]} 26... Qxd4 {[%clk
0:00:11.7]} 27. Nxd4 {[%clk 0:00:37]} 27... bxa3 {[%clk 0:00:10.6]} 28. Nxb7
{[%clk 0:00:33.9]} 28... Rxb7 {[%clk 0:00:10.2]} 29. bxa3 {[%clk 0:00:34.1]}
29... Rc8 {[%clk 0:00:09.4]} 30. Nf3 {[%clk 0:00:31.5]} 30... Rb3 {[%clk
0:00:08.3]} 31. Rd3 {[%clk 0:00:30.1]} 31... Rcc3 {[%clk 0:00:07.8]} 32. Rxc3
{[%clk 0:00:30]} 32... Rxc3 {[%clk 0:00:08.6]} 33. a4 {[%clk 0:00:29.8]} 33...
Rc4 {[%clk 0:00:07.4]} 34. Bd3 {[%clk 0:00:20.9]} 34... Rxa4 {[%clk 0:00:07.6]}
35. Rb1 {[%clk 0:00:20.8]} 35... Ra3 {[%clk 0:00:07.7]} 36. Bf1 {[%clk
0:00:19.2]} 36... a5 {[%clk 0:00:08]} 37. Rb7 {[%clk 0:00:17.3]} 37... Ra1
{[%clk 0:00:07.6]} 38. g3 {[%clk 0:00:14.3]} 38... Ne4 {[%clk 0:00:05.6]} 39.
Kg2 {[%clk 0:00:13.9]} 39... Kf6 {[%clk 0:00:05]} 40. h4 {[%clk 0:00:11]} 40...
h6 {[%clk 0:00:04.7]} 41. Nd4 {[%clk 0:00:04]} 41... a4 {[%clk 0:00:04.7]} 42.
Ra7 {[%clk 0:00:03]} 42... a3 {[%clk 0:00:05]} 43. Bd3 {[%clk 0:00:01.7]} 43...
Nc5 {[%clk 0:00:03.8]} 44. Be2 {[%clk 0:00:02.2]} 44... Ra2 {[%clk 0:00:03.7]}
45. Bf3 {[%clk 0:00:02.4]} 45... e5 {[%clk 0:00:03.7]} 46. Nb5 {[%clk
0:00:02.1]} 46... e4 {[%clk 0:00:03.9]} 47. Bg4 {[%clk 0:00:02.2]} 47... Nd3
{[%clk 0:00:04.1]} 48. Rxa3 {[%clk 0:00:01.8]} 48... Rxf2+ {[%clk 0:00:04.6]}
49. Kg1 {[%clk 0:00:02.4]} 49... Rb2 {[%clk 0:00:03.3]} 50. Nc3 {[%clk
0:00:02.3]} 50... Ke5 {[%clk 0:00:02.6]} 51. Ne2 {[%clk 0:00:02.7]} 51... f5
{[%clk 0:00:02.7]} 52. Ra5+ {[%clk 0:00:03.1]} 52... Kf6 {[%clk 0:00:02.7]} 53.
Bxf5 {[%clk 0:00:03]} 53... gxf5 {[%clk 0:00:02.7]} 54. Nd4 {[%clk 0:00:03.5]}
54... Rb4 {[%clk 0:00:01.9]} 55. Nxf5 {[%clk 0:00:02.3]} 55... Kg6 {[%clk
0:00:02.8]} 56. Ne3 {[%clk 0:00:02.7]} 56... Rb2 {[%clk 0:00:02.7]} 57. h5+
{[%clk 0:00:02.1]} 57... Kf7 {[%clk 0:00:03.2]} 58. Rf5+ {[%clk 0:00:02]} 58...
Ke6 {[%clk 0:00:03]} 59. Ra5 {[%clk 0:00:02.6]} 59... Ne5 {[%clk 0:00:03.4]} 60.
g4 {[%clk 0:00:01.4]} 60... Nf3+ {[%clk 0:00:02.8]} 61. Kf1 {[%clk 0:00:01.9]}
61... Kf6 {[%clk 0:00:03.2]} 62. Ra6+ {[%clk 0:00:01.7]} 62... Kg5 {[%clk
0:00:03.9]} 63. Ra5+ {[%clk 0:00:01.5]} 63... Kf4 {[%clk 0:00:04.3]} 64. Nf5
{[%clk 0:00:02.1]} 64... e3 {[%clk 0:00:04.6]} 65. Ra4+ {[%clk 0:00:01.6]} 65...
Kg5 {[%clk 0:00:04.3]} 66. Nxe3 {[%clk 0:00:01.9]} 66... Nh2+ {[%clk 0:00:04.6]}
67. Ke1 {[%clk 0:00:01.7]} 67... Nf3+ {[%clk 0:00:05]} 68. Kd1 {[%clk
0:00:01.4]} 68... Rd2+ {[%clk 0:00:05.2]} 69. Kc1 {[%clk 0:00:02]} 69... Re2
{[%clk 0:00:05.3]} 70. Re4 {[%clk 0:00:02.1]} 70... Nh2 {[%clk 0:00:03.8]} 71.
Kd1 {[%clk 0:00:01.9]} 71... Ra2 {[%clk 0:00:02.7]} 72. Re6 {[%clk 0:00:02.4]}
72... Nf3 {[%clk 0:00:02.8]} 73. Rg6+ {[%clk 0:00:02.7]} 73... Kf4 {[%clk
0:00:03.2]} 74. Nd5+ {[%clk 0:00:03.2]} 74... Kg3 {[%clk 0:00:03.5]} 75. Rxh6
{[%clk 0:00:02.9]} 75... Kxg4 {[%clk 0:00:04]} 76. Rh7 {[%clk 0:00:03.2]} 76...
Kg5 {[%clk 0:00:04.1]} 77. h6 {[%clk 0:00:03.1]} 77... Rd2+ {[%clk 0:00:04.5]}
78. Kc1 {[%clk 0:00:03.1]} 78... Rxd5 {[%clk 0:00:05.4]} 79. Rh8 {[%clk
0:00:03.7]} 79... Kg6 {[%clk 0:00:05.4]} 80. h7 {[%clk 0:00:04]} 80... Ng5
{[%clk 0:00:05]} 81. Rg8+ {[%clk 0:00:04.1]} 81... Kxh7 {[%clk 0:00:05.1]} 82.
Rc8 {[%clk 0:00:04.8]} 82... Kg6 {[%clk 0:00:05.4]} 83. Rc4 {[%clk 0:00:04.7]}
83... Kf5 {[%clk 0:00:05.7]} 84. Kc2 {[%clk 0:00:05.3]} 84... Ne4 {[%clk
0:00:06.2]} 85. Ra4 {[%clk 0:00:04.8]} 85... Rd2+ {[%clk 0:00:05.9]} 86. Kc1
{[%clk 0:00:04.4]} 86... Re2 {[%clk 0:00:04.9]} 87. Ra8 {[%clk 0:00:04.1]} 87...
Kf4 {[%clk 0:00:04.8]} 88. Rd8 {[%clk 0:00:04.3]} 88... Nc5 {[%clk 0:00:03.6]}
89. Rd5 {[%clk 0:00:03.9]} 89... Ne4 {[%clk 0:00:03.2]} 90. Rd8 {[%clk
0:00:03.5]} 90... Rh2 {[%clk 0:00:04.1]} 91. Kd1 {[%clk 0:00:03.5]} 91... Ke3
{[%clk 0:00:04.4]} 92. Rd7 {[%clk 0:00:03.8]} 92... Nc5 {[%clk 0:00:03.8]} 93.
Rd8 {[%clk 0:00:03.5]} 93... Nb3 {[%clk 0:00:03.3]} 94. Re8+ {[%clk 0:00:03]}
94... Kd3 {[%clk 0:00:03.3]} 95. Rd8+ {[%clk 0:00:03.2]} 95... Nd4 {[%clk
0:00:03.7]} 96. Ke1 {[%clk 0:00:03.6]} 96... Re2+ {[%clk 0:00:03.3]} 97. Kf1
{[%clk 0:00:04]} 97... Re7 {[%clk 0:00:03.5]} 98. Kf2 {[%clk 0:00:04.1]} 98...
Ke4 {[%clk 0:00:02.9]} 99. Rd6 {[%clk 0:00:03.5]} 99... Rf7+ {[%clk 0:00:03.3]}
100. Ke1 {[%clk 0:00:03.2]} 100... Rg7 {[%clk 0:00:03.5]} 101. Kf2 {[%clk
0:00:03.2]} 101... Kd3 {[%clk 0:00:03.1]} 102. Rd8 {[%clk 0:00:03.1]} 102...
Rf7+ {[%clk 0:00:03.4]} 103. Ke1 {[%clk 0:00:03.5]} 103... Ke3 {[%clk
0:00:02.7]} 104. Re8+ {[%clk 0:00:03.2]} 104... Kd3 {[%clk 0:00:03]} 105. Rd8
{[%clk 0:00:03.7]} 105... Rf6 {[%clk 0:00:03.5]} 106. Rd5 {[%clk 0:00:03.1]}
106... Ke4 {[%clk 0:00:01.4]} 107. Rd8 {[%clk 0:00:03.1]} 107... Ke3 {[%clk
0:00:01.6]} 108. Re8+ {[%clk 0:00:03.3]} 108... Kd3 {[%clk 0:00:02.1]} 109. Rd8
{[%clk 0:00:03.4]} 109... Rh6 {[%clk 0:00:02.1]} 110. Kf2 {[%clk 0:00:03.2]}
110... Rh3 {[%clk 0:00:02.2]} 111. Kg2 {[%clk 0:00:03.3]} 111... Re3 {[%clk
0:00:02.3]} 112. Kf2 {[%clk 0:00:03.7]} 112... Re2+ {[%clk 0:00:01.8]} 113. Kf1
{[%clk 0:00:04]} 1-0

[Event "*** Titled Tuesday Blitz"]
[Site "Chess.com"]
[Date "2021.03.30"]
[Round "10"]
[White "TioCridineno"]
[Black "Maddie"]
[Result "1-0"]
[WhiteElo "2283"]
[BlackElo "2077"]
[TimeControl "180+1"]
[EndTime "11:52:26 PDT"]
[Termination "TioCridineno won by checkmate"]

1. e4 {[%clk 0:03:00.9]} 1... c6 {[%clk 0:02:58.2]} 2. c4 {[%clk 0:03:00.4]}
2... d5 {[%clk 0:02:57]} 3. exd5 {[%clk 0:03:00.5]} 3... cxd5 {[%clk 0:02:57.7]}
4. cxd5 {[%clk 0:03:01.1]} 4... Qxd5 {[%clk 0:02:58.4]} 5. Nc3 {[%clk
0:03:01.5]} 5... Qd8 {[%clk 0:02:58.3]} 6. d4 {[%clk 0:03:01.9]} 6... Nf6 {[%clk
0:02:55.8]} 7. Nf3 {[%clk 0:03:01.5]} 7... Bf5 {[%clk 0:02:55.5]} 8. Qb3 {[%clk
0:02:59]} 8... Qc7 {[%clk 0:02:47.9]} 9. Bf4 {[%clk 0:02:21.4]} 9... Qxf4 {[%clk
0:02:26.8]} 10. Qxb7 {[%clk 0:02:19.8]} 10... Be4 {[%clk 0:02:21.9]} 11. Qc8#
{[%clk 0:02:19.4]} 1-0

[Event "*** Titled Tuesday Blitz"]
[Site "Chess.com"]
[Date "2021.03.30"]
[Round "10"]
[White "Cptn2"]
[Black "olksuna"]
[Result "0-1"]
[WhiteElo "2526"]
[BlackElo "2693"]
[TimeControl "180+1"]
[EndTime "11:52:36 PDT"]
[Termination "olksuna won by resignation"]

1. e4 {[%clk 0:02:55.3]} 1... c5 {[%clk 0:02:59.7]} 2. a3 {[%clk 0:02:54.3]}
2... g6 {[%clk 0:02:58.7]} 3. h4 {[%clk 0:02:54]} 3... h6 {[%clk 0:02:57]} 4.
Nf3 {[%clk 0:02:50.9]} 4... Bg7 {[%clk 0:02:56.9]} 5. Nc3 {[%clk 0:02:50.5]}
5... Nc6 {[%clk 0:02:56.5]} 6. Bc4 {[%clk 0:02:50]} 6... e6 {[%clk 0:02:55.6]}
7. d3 {[%clk 0:02:49.5]} 7... Nge7 {[%clk 0:02:55.1]} 8. Be3 {[%clk 0:02:47.8]}
8... d5 {[%clk 0:02:54.6]} 9. exd5 {[%clk 0:02:47.2]} 9... exd5 {[%clk
0:02:54.7]} 10. Nxd5 {[%clk 0:02:43.1]} 10... Nxd5 {[%clk 0:02:54.3]} 11. Bxc5
{[%clk 0:02:44]} 11... b6 {[%clk 0:02:42.5]} 12. Be3 {[%clk 0:02:34.6]} 12...
Nxe3 {[%clk 0:02:41.6]} 13. fxe3 {[%clk 0:02:34.7]} 13... Bxb2 {[%clk
0:02:41.2]} 14. Rb1 {[%clk 0:02:33.1]} 14... Bc3+ {[%clk 0:02:41.2]} 15. Ke2
{[%clk 0:02:34]} 15... O-O {[%clk 0:02:39.3]} 16. Rb5 {[%clk 0:02:30.1]} 16...
Bg4 {[%clk 0:02:36]} 17. Qf1 {[%clk 0:02:23.4]} 17... Qe7 {[%clk 0:02:31]} 18.
Qf2 {[%clk 0:02:23.5]} 18... Nd4+ {[%clk 0:02:29.5]} 0-1

[Event "*** Titled Tuesday Blitz"]
[Site "Chess.com"]
[Date "2021.03.30"]
[Round "10"]
[White "Skat2704"]
[Black "Cambek64"]
[Result "1-0"]
[WhiteElo "2631"]
[BlackElo "2482"]
[TimeControl "180+1"]
[EndTime "11:53:20 PDT"]
[Termination "Skat2704 won by resignation"]

1. d4 {[%clk 0:03:00.1]} 1... d6 {[%clk 0:02:56.7]} 2. c4 {[%clk 0:02:58.2]}
2... e5 {[%clk 0:02:55.4]} 3. d5 {[%clk 0:02:55.9]} 3... g6 {[%clk 0:02:54.2]}
4. Nc3 {[%clk 0:02:54.1]} 4... f5 {[%clk 0:02:47.2]} 5. e4 {[%clk 0:02:50.7]}
5... Bh6 {[%clk 0:02:46.5]} 6. Bxh6 {[%clk 0:02:45.4]} 6... Nxh6 {[%clk
0:02:43.9]} 7. Bd3 {[%clk 0:02:41.8]} 7... Qg5 {[%clk 0:02:30.9]} 8. Nf3 {[%clk
0:02:34.4]} 8... Qxg2 {[%clk 0:02:22.1]} 9. Rg1 {[%clk 0:02:31.1]} 9... Qh3
{[%clk 0:02:22.4]} 10. Rg3 {[%clk 0:02:29.1]} 10... Qh5 {[%clk 0:02:20.4]} 11.
Rg5 {[%clk 0:02:28.8]} 11... Qh3 {[%clk 0:02:19.8]} 12. Bf1 {[%clk 0:02:28.3]}
12... f4 {[%clk 0:02:15.4]} 13. Bxh3 {[%clk 0:02:24.8]} 13... Bxh3 {[%clk
0:02:16]} 14. Nxe5 {[%clk 0:02:22.3]} 14... dxe5 {[%clk 0:02:14.1]} 15. Rxe5+
{[%clk 0:02:20.6]} 15... Kf8 {[%clk 0:02:14.6]} 16. Qf3 {[%clk 0:02:17.2]} 16...
Bd7 {[%clk 0:01:59.6]} 17. Qxf4+ {[%clk 0:02:15.8]} 17... Kg7 {[%clk 0:01:57.3]}
18. Re7+ {[%clk 0:02:14.7]} 1-0

[Event "*** Titled Tuesday Blitz"]
[Site "Chess.com"]
[Date "2021.03.30"]
[Round "10"]
[White "NoGuru"]
[Black "Omk124"]
[Result "1-0"]
[WhiteElo "2342"]
[BlackElo "2462"]
[TimeControl "180+1"]
[EndTime "11:53:51 PDT"]
[Termination "NoGuru won by resignation"]

1. Nf3 {[%clk 0:03:00.9]} 1... Nf6 {[%clk 0:03:00]} 2. c4 {[%clk 0:03:00.8]}
2... g6 {[%clk 0:03:00.4]} 3. Nc3 {[%clk 0:03:00.5]} 3... d5 {[%clk 0:03:00.4]}
4. cxd5 {[%clk 0:02:59.9]} 4... Nxd5 {[%clk 0:03:01.3]} 5. e4 {[%clk 0:02:59.3]}
5... Nxc3 {[%clk 0:03:01.7]} 6. dxc3 {[%clk 0:03:00.2]} 6... Qxd1+ {[%clk
0:03:01.9]} 7. Kxd1 {[%clk 0:03:01]} 7... Bg7 {[%clk 0:03:02.5]} 8. Kc2 {[%clk
0:03:01.2]} 8... O-O {[%clk 0:03:02.8]} 9. Be3 {[%clk 0:03:01.3]} 9... Nc6
{[%clk 0:03:03.1]} 10. Bc4 {[%clk 0:02:54]} 10... Bg4 {[%clk 0:03:01.1]} 11.
Rhd1 {[%clk 0:02:49.1]} 11... Rad8 {[%clk 0:02:59.4]} 12. h3 {[%clk 0:02:47]}
12... Ne5 {[%clk 0:02:55.4]} 13. Rxd8 {[%clk 0:02:38.6]} 13... Rxd8 {[%clk
0:02:49.4]} 14. Nxe5 {[%clk 0:02:36.8]} 14... Be6 {[%clk 0:02:48.6]} 15. Bxe6
{[%clk 0:02:35.8]} 15... fxe6 {[%clk 0:02:48]} 16. Nd3 {[%clk 0:02:33.1]} 16...
b6 {[%clk 0:02:47.2]} 17. Rd1 {[%clk 0:02:29.3]} 17... Rf8 {[%clk 0:02:47]} 18.
f3 {[%clk 0:02:28.5]} 18... e5 {[%clk 0:02:46.7]} 19. Nb4 {[%clk 0:02:22.7]}
19... Kf7 {[%clk 0:02:45.7]} 20. Rd7 {[%clk 0:02:21.1]} 20... Rc8 {[%clk
0:02:45.2]} 21. Nd5 {[%clk 0:02:18.1]} 21... c6 {[%clk 0:02:45.6]} 22. Rxe7+
{[%clk 0:02:09.6]} 22... Kf8 {[%clk 0:02:45.5]} 23. Rc7 {[%clk 0:02:08.9]} 23...
Rxc7 {[%clk 0:02:43.1]} 24. Nxc7 {[%clk 0:02:08.8]} 24... Ke7 {[%clk 0:02:44]}
25. Na6 {[%clk 0:02:02.6]} 25... Kd7 {[%clk 0:02:44.5]} 26. Nb4 {[%clk
0:02:01.1]} 26... Kd6 {[%clk 0:02:43.4]} 27. Nd3 {[%clk 0:02:00.6]} 27... a5
{[%clk 0:02:43.6]} 28. c4 {[%clk 0:02:00.5]} 28... c5 {[%clk 0:02:43.5]} 29. Kc3
{[%clk 0:01:55.7]} 29... h5 {[%clk 0:02:42.7]} 30. Bg5 {[%clk 0:01:53.2]} 30...
Ke6 {[%clk 0:02:42.8]} 31. Nf2 {[%clk 0:01:50.3]} 31... Bh8 {[%clk 0:02:40.9]}
32. Kb3 {[%clk 0:01:49.9]} 32... Bg7 {[%clk 0:02:41]} 33. Ka4 {[%clk 0:01:49.8]}
33... Kd6 {[%clk 0:02:41.3]} 34. Kb5 {[%clk 0:01:49.9]} 34... Kc7 {[%clk
0:02:41.9]} 35. Nd1 {[%clk 0:01:48.1]} 35... Kb7 {[%clk 0:02:40.1]} 36. Nc3
{[%clk 0:01:48.1]} 36... Bf8 {[%clk 0:02:40.6]} 37. Nd5 {[%clk 0:01:47.9]} 37...
Bd6 {[%clk 0:02:41.5]} 38. Nxb6 {[%clk 0:01:47.1]} 38... Bc7 {[%clk 0:02:42.2]}
39. Nd7 {[%clk 0:01:45.8]} 39... Bd6 {[%clk 0:02:42.9]} 40. Nxc5+ {[%clk
0:01:45.8]} 1-0

[Event "*** Titled Tuesday Blitz"]
[Site "Chess.com"]
[Date "2021.03.30"]
[Round "10"]
[White "Vuk2000"]
[Black "lucachess49"]
[Result "1-0"]
[WhiteElo "2713"]
[BlackElo "2437"]
[TimeControl "180+1"]
[EndTime "11:54:30 PDT"]
[Termination "Vuk2000 won by resignation"]

1. e4 {[%clk 0:03:00]} 1... e5 {[%clk 0:02:59.7]} 2. Nf3 {[%clk 0:02:59.5]} 2...
Nc6 {[%clk 0:03:00.2]} 3. d4 {[%clk 0:02:59.8]} 3... exd4 {[%clk 0:02:59.8]} 4.
Nxd4 {[%clk 0:03:00.7]} 4... Nf6 {[%clk 0:02:59.4]} 5. Nxc6 {[%clk 0:03:01]}
5... bxc6 {[%clk 0:02:59]} 6. Bd3 {[%clk 0:03:01.5]} 6... d5 {[%clk 0:02:42.3]}
7. exd5 {[%clk 0:03:02.4]} 7... cxd5 {[%clk 0:02:41.6]} 8. O-O {[%clk
0:03:02.9]} 8... Be7 {[%clk 0:02:39.3]} 9. Bb5+ {[%clk 0:02:59.8]} 9... Bd7
{[%clk 0:02:31.8]} 10. Bxd7+ {[%clk 0:02:59.3]} 10... Qxd7 {[%clk 0:02:31.8]}
11. Nd2 {[%clk 0:03:00]} 11... O-O {[%clk 0:02:30.6]} 12. b3 {[%clk 0:02:59.9]}
12... c5 {[%clk 0:02:29.9]} 13. Bb2 {[%clk 0:02:58.9]} 13... d4 {[%clk
0:02:28.3]} 14. Nf3 {[%clk 0:02:51.5]} 14... Rad8 {[%clk 0:02:25]} 15. c3 {[%clk
0:02:38.1]} 15... Ne4 {[%clk 0:01:40.1]} 16. cxd4 {[%clk 0:02:35.8]} 16... cxd4
{[%clk 0:01:41]} 17. Qxd4 {[%clk 0:02:31.1]} 17... Qg4 {[%clk 0:01:25.4]} 18.
Qxa7 {[%clk 0:02:30.1]} 18... Bc5 {[%clk 0:01:24.8]} 19. Qa4 {[%clk 0:02:28.9]}
19... Rd3 {[%clk 0:01:20.3]} 20. Rae1 {[%clk 0:02:04.9]} 20... f5 {[%clk
0:01:16.9]} 21. Qc4+ {[%clk 0:02:03.2]} 1-0

[Event "*** Titled Tuesday Blitz"]
[Site "Chess.com"]
[Date "2021.03.30"]
[Round "10"]
[White "BozeKat"]
[Black "VladaSviridova"]
[Result "0-1"]
[WhiteElo "2032"]
[BlackElo "2228"]
[TimeControl "180+1"]
[EndTime "11:54:32 PDT"]
[Termination "VladaSviridova won by resignation"]

1. Nf3 {[%clk 0:03:00.9]} 1... d5 {[%clk 0:02:59.8]} 2. c4 {[%clk 0:03:00.8]}
2... c6 {[%clk 0:02:59.5]} 3. d4 {[%clk 0:03:00.9]} 3... Nf6 {[%clk 0:02:59.3]}
4. Nc3 {[%clk 0:03:00.3]} 4... dxc4 {[%clk 0:02:59.8]} 5. e3 {[%clk 0:02:59.1]}
5... b5 {[%clk 0:02:59.4]} 6. Be2 {[%clk 0:02:48.8]} 6... e6 {[%clk 0:02:59.1]}
7. O-O {[%clk 0:02:48.7]} 7... Bb7 {[%clk 0:02:53.9]} 8. Re1 {[%clk 0:02:35.1]}
8... Nbd7 {[%clk 0:02:52.2]} 9. Qc2 {[%clk 0:02:31]} 9... a6 {[%clk 0:02:46.8]}
10. a3 {[%clk 0:02:29]} 10... c5 {[%clk 0:02:43.9]} 11. b3 {[%clk 0:02:10.3]}
11... cxb3 {[%clk 0:02:43.1]} 12. Qxb3 {[%clk 0:02:09.5]} 12... c4 {[%clk
0:02:43.5]} 13. Qc2 {[%clk 0:02:07.7]} 13... Bd6 {[%clk 0:02:36.5]} 14. e4
{[%clk 0:02:07.5]} 14... e5 {[%clk 0:02:36.7]} 15. d5 {[%clk 0:02:06.2]} 15...
O-O {[%clk 0:02:33.8]} 16. Bf4 {[%clk 0:01:58.1]} 16... exf4 {[%clk 0:02:32.8]}
17. Bxc4 {[%clk 0:01:36.1]} 17... bxc4 {[%clk 0:02:32.1]} 18. e5 {[%clk
0:01:36.5]} 18... Nxe5 {[%clk 0:02:30.4]} 19. Nxe5 {[%clk 0:01:37.4]} 19... Rc8
{[%clk 0:02:16.9]} 20. Rab1 {[%clk 0:01:24.4]} 20... Qc7 {[%clk 0:02:13]} 21.
Nc6 {[%clk 0:01:03.2]} 21... Bxc6 {[%clk 0:02:12.1]} 22. dxc6 {[%clk 0:01:04.1]}
22... Qxc6 {[%clk 0:02:12.6]} 0-1

[Event "*** Titled Tuesday Blitz"]
[Site "Chess.com"]
[Date "2021.03.30"]
[Round "10"]
[White "Ze-Pequeno"]
[Black "Ladislav1969"]
[Result "0-1"]
[WhiteElo "2219"]
[BlackElo "2346"]
[TimeControl "180+1"]
[EndTime "11:54:44 PDT"]
[Termination "Ladislav1969 won by resignation"]

1. e4 {[%clk 0:03:00.2]} 1... c5 {[%clk 0:02:59.5]} 2. Nf3 {[%clk 0:02:59.4]}
2... e6 {[%clk 0:03:00.4]} 3. d4 {[%clk 0:02:59]} 3... cxd4 {[%clk 0:03:01.3]}
4. Nxd4 {[%clk 0:02:59.4]} 4... a6 {[%clk 0:03:02.2]} 5. Bd3 {[%clk 0:02:58.6]}
5... Nc6 {[%clk 0:03:01.8]} 6. Nxc6 {[%clk 0:02:57.9]} 6... dxc6 {[%clk
0:03:02.7]} 7. Nd2 {[%clk 0:02:55.3]} 7... e5 {[%clk 0:03:01.9]} 8. Nc4 {[%clk
0:02:17.3]} 8... Bc5 {[%clk 0:03:01.4]} 9. Qh5 {[%clk 0:02:08.2]} 9... Bd6
{[%clk 0:02:30.3]} 10. Be3 {[%clk 0:01:54.1]} 10... Nf6 {[%clk 0:02:26.8]} 11.
Qg5 {[%clk 0:01:47.5]} 11... O-O {[%clk 0:02:19.6]} 12. O-O-O {[%clk 0:01:45.4]}
12... h6 {[%clk 0:02:02.3]} 13. Qh4 {[%clk 0:01:44.1]} 13... Be7 {[%clk
0:01:50.5]} 14. Qg3 {[%clk 0:01:40.4]} 14... Ng4 {[%clk 0:01:22.9]} 15. Bb6
{[%clk 0:01:39.3]} 15... Bg5+ {[%clk 0:01:22.7]} 16. Kb1 {[%clk 0:01:38.9]}
16... Qf6 {[%clk 0:01:22.7]} 17. f3 {[%clk 0:01:25.5]} 17... Bh4 {[%clk
0:01:22.7]} 18. Qh3 {[%clk 0:01:21.5]} 18... Nf2 {[%clk 0:01:22.6]} 0-1

[Event "*** Titled Tuesday Blitz"]
[Site "Chess.com"]
[Date "2021.03.30"]
[Round "10"]
[White "Mihnea2017"]
[Black "Olga_Zhuravleva"]
[Result "0-1"]
[WhiteElo "2448"]
[BlackElo "2338"]
[TimeControl "180+1"]
[EndTime "11:54:47 PDT"]
[Termination "Olga_Zhuravleva won by resignation"]

1. e4 {[%clk 0:03:00.9]} 1... e5 {[%clk 0:02:59.2]} 2. Nf3 {[%clk 0:03:00.2]}
2... Nc6 {[%clk 0:02:59.4]} 3. Nc3 {[%clk 0:03:00]} 3... Nf6 {[%clk 0:02:59]} 4.
g3 {[%clk 0:02:58.5]} 4... d5 {[%clk 0:02:54.1]} 5. exd5 {[%clk 0:02:32.8]} 5...
Nxd5 {[%clk 0:02:53.5]} 6. Bg2 {[%clk 0:02:33.5]} 6... Nxc3 {[%clk 0:02:45.5]}
7. bxc3 {[%clk 0:02:32.9]} 7... Bc5 {[%clk 0:02:28.3]} 8. O-O {[%clk 0:02:32.3]}
8... O-O {[%clk 0:02:28.3]} 9. Re1 {[%clk 0:02:27.7]} 9... Bg4 {[%clk
0:02:22.7]} 10. h3 {[%clk 0:02:26.5]} 10... Bh5 {[%clk 0:02:19.2]} 11. Rb1
{[%clk 0:02:22.9]} 11... Rb8 {[%clk 0:02:09.2]} 12. Rb5 {[%clk 0:02:05.2]} 12...
Qd6 {[%clk 0:01:52.3]} 13. d3 {[%clk 0:01:43]} 13... a6 {[%clk 0:01:51.3]} 14.
Rb3 {[%clk 0:01:41.7]} 14... f5 {[%clk 0:01:44.4]} 15. Be3 {[%clk 0:01:34.9]}
15... Bxe3 {[%clk 0:01:37.4]} 16. fxe3 {[%clk 0:01:31.2]} 16... e4 {[%clk
0:01:32.9]} 17. dxe4 {[%clk 0:01:31.3]} 17... Qxd1 {[%clk 0:01:32.4]} 18. Rxd1
{[%clk 0:01:25.4]} 18... fxe4 {[%clk 0:01:32.8]} 0-1

[Event "*** Titled Tuesday Blitz"]
[Site "Chess.com"]
[Date "2021.03.30"]
[Round "10"]
[White "MerryPoppies"]
[Black "malakismayil"]
[Result "0-1"]
[WhiteElo "2219"]
[BlackElo "2310"]
[TimeControl "180+1"]
[EndTime "11:54:53 PDT"]
[Termination "malakismayil won by resignation"]

1. d4 {[%clk 0:03:00.9]} 1... Nf6 {[%clk 0:02:58.1]} 2. c4 {[%clk 0:03:00.9]}
2... e6 {[%clk 0:02:57.8]} 3. Nc3 {[%clk 0:03:00.7]} 3... Bb4 {[%clk 0:02:58.1]}
4. Qc2 {[%clk 0:03:00.4]} 4... O-O {[%clk 0:02:58.2]} 5. Nf3 {[%clk 0:02:59.7]}
5... b6 {[%clk 0:02:55]} 6. a3 {[%clk 0:02:58.5]} 6... Bxc3+ {[%clk 0:02:54.2]}
7. Qxc3 {[%clk 0:02:58.4]} 7... Bb7 {[%clk 0:02:55.1]} 8. Bg5 {[%clk 0:02:52.5]}
8... h6 {[%clk 0:02:50.6]} 9. Bh4 {[%clk 0:02:52]} 9... d6 {[%clk 0:02:50.2]}
10. e3 {[%clk 0:02:48.2]} 10... Nbd7 {[%clk 0:02:49.3]} 11. Bd3 {[%clk
0:02:44.2]} 11... Qe8 {[%clk 0:02:45.3]} 12. Bg3 {[%clk 0:02:31.4]} 12... Ne4
{[%clk 0:02:41.3]} 13. Qc2 {[%clk 0:02:26]} 13... f5 {[%clk 0:02:39.1]} 14. Nd2
{[%clk 0:02:26.1]} 14... Ndf6 {[%clk 0:02:34.1]} 15. f3 {[%clk 0:02:23.5]} 15...
Nxd2 {[%clk 0:02:31.2]} 16. Qxd2 {[%clk 0:02:22.9]} 16... Qh5 {[%clk 0:02:20.5]}
17. O-O-O {[%clk 0:01:57.9]} 17... Rae8 {[%clk 0:02:14.4]} 18. Rde1 {[%clk
0:01:49.9]} 18... e5 {[%clk 0:02:11.3]} 19. d5 {[%clk 0:01:42.6]} 19... e4
{[%clk 0:01:58.2]} 20. Be2 {[%clk 0:01:37.7]} 20... Qg6 {[%clk 0:01:52.4]} 21.
Bf2 {[%clk 0:01:34.2]} 21... Nd7 {[%clk 0:01:42.9]} 22. f4 {[%clk 0:01:30.2]}
22... Nc5 {[%clk 0:01:39.6]} 23. Reg1 {[%clk 0:01:19]} 23... Nb3+ {[%clk
0:01:38.5]} 0-1